bitfinex-derivatives/quotes_SOLF0:USTF0_20250819
["timestamp","ask_amount","ask_price","bid_price","bid_amount"]
[1755570672880,8.08383417,182.95,182.88,3.0]
[1755570673079,8.21961106,182.94,182.88,3.0]
[1755570673285,3.86998821,182.93,182.88,3.0]
[1755570673582,3.86998821,182.92,182.88,3.0]
[1755570673777,3.86998821,182.91,182.88,3.0]
[1755570673973,0.03836586,182.92,182.88,3.0]
[1755570674176,3.8394115,182.91,182.88,3.0]
[1755570674370,0.03836586,182.92,182.88,3.0]
[1755570674577,3.83856065,182.91,182.88,3.0]
[1755570674776,0.03836586,182.92,182.88,3.0]
[1755570674980,3.83921374,182.91,182.88,3.0]
[1755570675177,0.03836586,182.92,182.88,3.0]
[1755570675377,3.83978025,182.91,182.88,3.0]
[1755570675577,0.03836586,182.92,182.88,3.0]
[1755570675772,6.85907868,182.91,182.85,3.0]
[1755570675978,6.85907868,182.9,182.85,3.0]
[1755570676178,3.83907868,182.89,182.85,3.0]
[1755570676379,3.02,182.9,182.85,3.0]
[1755570676584,3.87829513,182.89,182.85,3.0]
[1755570676785,0.04101593,182.89,182.85,3.0]
[1755570677182,3.8368683,182.88,182.79,3.0]
[1755570677383,7.27486189,182.89,182.79,3.0]
[1755570677685,3.83532467,182.88,182.79,3.0]
[1755570677885,0.03781586,182.86,182.79,3.0]
[1755570678979,3.05781586,182.86,182.79,3.0]
[1755570679179,3.83228032,182.85,182.79,3.0]
[1755570679485,3.05781586,182.86,182.79,3.0]
[1755570679984,3.83087541,182.85,182.79,3.0]
[1755570680188,3.83087541,182.84,182.75,3.0]
[1755570680383,7.27166182,182.86,182.75,3.0]
[1755570680585,3.82782258,182.85,182.75,3.0]
[1755570680783,3.82782258,182.84,182.75,3.0]
[1755570680989,0.04199923,182.82,182.75,3.0]
[1755570684596,0.04199923,182.82,182.8,2.85]
[1755570684999,2.91,182.87,182.8,2.85]
[1755570685391,0.04188315,182.83,182.78,2.85]
[1755570685585,0.04188315,182.83,182.8,2.85]
[1755570685788,0.04188315,182.83,182.77,2.85]
[1755570687393,0.04188315,182.83,182.77,7.06384596]
[1755570687698,0.04188315,182.83,182.78,2.85]
[1755570687888,0.04188315,182.83,182.77,4.21384596]
[1755570688294,0.04188315,182.83,182.8,2.85]
[1755570688491,0.04188315,182.83,182.8,4.21384596]
[1755570688697,0.04188315,182.83,182.82,2.85]
[1755570689898,0.04188315,182.83,182.79,2.85]
[1755570690093,0.04188315,182.83,182.78,2.85]
[1755570690892,0.04188315,182.83,182.79,2.85]
[1755570691102,0.04188315,182.83,182.77,4.21384596]
[1755570691299,0.04188315,182.83,182.81,2.85]
[1755570691600,0.04188315,182.83,182.82,2.85]
[1755570691794,0.04188315,182.83,182.79,2.85]
[1755570691995,0.04188315,182.83,182.77,4.21384596]
[1755570691996,2.95188315,182.83,182.77,4.21384596]
[1755570692197,2.95188315,182.83,182.76,2.85]
[1755570693598,2.95188315,182.83,182.74,4.21384596]
[1755570693793,2.95188315,182.83,182.72,7.06384596]
[1755570694001,2.95188315,182.83,182.73,2.85]
[1755570694196,2.91,182.83,182.73,2.85]
[1755570694595,0.03580769,182.8,182.73,2.85]
[1755570699004,0.03580769,182.8,182.75,4.21384596]
[1755570699209,0.03580769,182.8,182.77,2.85]
[1755570699403,2.91,182.83,182.78,2.85]
[1755570699803,0.03725188,182.8,182.78,2.85]
[1755570699997,0.03725188,182.8,182.75,4.21384596]
[1755570700204,0.03725188,182.8,182.67,367.34]
[1755570700205,0.03725188,182.8,182.79,2.85]
[1755570700705,2.91,182.89,182.79,2.85]
[1755570700910,0.03529285,182.81,182.79,2.85]
[1755570701106,0.03529285,182.81,182.77,2.85]
[1755570701408,2.91,182.89,182.77,2.85]
[1755570701607,0.03983061,182.81,182.77,2.85]
[1755570701811,2.91,182.89,182.77,2.85]
[1755570702105,0.03520489,182.81,182.77,2.85]
[1755570702498,135.5,182.94,182.81,2.85]
[1755570702705,2.91,182.92,182.81,2.85]
[1755570702905,2.91,182.9,182.81,2.85]
[1755570703105,0.03734387,182.89,182.81,2.85]
[1755570703307,2.91,182.88,182.81,2.85]
[1755570703912,2.91,182.88,182.76,6.65191333]
[1755570704110,2.91,182.88,182.77,2.85]
[1755570704712,0.03923779,182.84,182.77,2.85]
[1755570710011,0.03923779,182.84,182.77,8.3185]
[1755570710619,0.03923779,182.84,182.77,2.85]
[1755570711416,0.03923779,182.84,182.78,2.85]
[1755570715625,0.03923779,182.84,182.76,6.65191333]
[1755570715626,0.03923779,182.84,182.8,2.95]
[1755570715820,0.03923779,182.84,182.81,2.95]
[1755570716016,0.03923779,182.84,182.82,2.95]
[1755570717223,0.03923779,182.84,182.83,2.95]
[1755570717430,3.11,182.92,182.83,2.95]
[1755570718722,0.0357994,182.89,182.86,0.03540954]
[1755570719115,0.0357994,182.89,182.86,2.98540954]
[1755570720937,3.1457994,182.89,182.86,0.03540954]
[1755570721427,3.1457994,182.89,182.86,2.98540954]
[1755570721624,0.0357994,182.89,182.86,2.98540954]
[1755570721929,3.1457994,182.89,182.86,2.98540954]
[1755570722533,3.1457994,182.89,182.86,0.03540954]
[1755570722726,3.11,182.87,182.86,0.03540954]
[1755570723118,3.11,182.87,182.76,6.07236373]
[1755570723119,3.11,182.87,182.79,2.95]
[1755570724437,3.11,182.87,182.75,9.68825184]
[1755570724438,0.03586215,182.85,182.75,2.95]
[1755570724635,3.11,182.84,182.75,2.95]
[1755570725429,0.03520413,182.81,182.75,2.95]
[1755570725631,0.03520413,182.81,182.75,8.4191]
[1755570725937,0.03520413,182.81,182.75,2.95]
[1755570726636,3.14520413,182.81,182.75,2.95]
[1755570726831,3.14520413,182.81,182.72,2.95]
[1755570727433,3.11,182.81,182.72,2.95]
[1755570727630,0.03568006,182.78,182.72,2.95]
[1755570729738,0.03568006,182.78,182.73,5.4696]
[1755570730139,0.03568006,182.78,182.75,2.95]
[1755570730528,0.03568006,182.78,182.73,5.4696]
[1755570730529,0.03568006,182.78,182.73,6.65411173]
[1755570731140,0.03568006,182.78,182.77,2.95]
[1755570733142,3.11,182.88,182.77,2.95]
[1755570733346,3.11,182.88,182.78,2.95]
[1755570733539,3.11,182.88,182.8,5.4676]
[1755570733843,3.11,182.88,182.81,2.95]
[1755570734444,6.06986402,182.93,182.83,0.03947293]
[1755570734644,3.11,182.87,182.83,0.03947293]
[1755570735845,3.11,182.9,182.83,0.03947293]
[1755570736342,7.01223796,182.89,182.76,2.95]
[1755570736535,3.11,182.87,182.85,0.04020509]
[1755570736735,3.11,182.86,182.85,0.04020509]
[1755570736946,3.11,182.86,182.78,2.95]
[1755570737146,3.11,182.86,182.84,0.04052133]
[1755570737346,3.11,182.85,182.84,0.04052133]
[1755570737543,3.11,182.85,182.79,5.4679]
[1755570737746,3.11,182.85,182.78,2.95]
[1755570737947,3.11,182.84,182.83,0.04000393]
[1755570739355,8.01173642,182.84,182.75,2.95]
[1755570739556,3.11,182.84,182.75,2.95]
[1755570740453,0.0355492,182.81,182.75,2.95]
[1755570741354,0.0355492,182.81,182.71,2.95]
[1755570741542,3.11,182.8,182.71,2.95]
[1755570742254,0.03828053,182.77,182.71,2.95]
[1755570742556,0.03828053,182.77,182.71,8.4203]
[1755570743251,3.03,182.76,182.67,122.77737495]
[1755570743457,0.03828053,182.77,182.68,3.07]
[1755570743654,3.03,182.79,182.68,3.07]
[1755570744058,0.03723354,182.74,182.68,3.07]
[1755570744855,0.03723354,182.74,182.7,5.4705]
[1755570745052,0.03723354,182.74,182.72,3.07]
[1755570745248,0.03723354,182.74,182.73,3.07]
[1755570746058,0.03723354,182.74,182.69,6.65411173]
[1755570746251,0.03723354,182.74,182.71,3.07]
[1755570748863,3.06723354,182.74,182.67,119.70737495]
[1755570752656,3.06723354,182.74,182.61,3.07]
[1755570752865,3.03,182.72,182.61,3.07]
[1755570753562,3.06901952,182.68,182.61,3.07]
[1755570753861,0.03901952,182.68,182.61,3.07]
[1755570754057,0.03901952,182.68,182.62,3.07]
[1755570755360,0.03901952,182.68,182.63,5.4726]
[1755570755759,0.03901952,182.68,182.66,3.07]
[1755570755956,0.03901952,182.68,182.6,3.07]
[1755570756761,0.03901952,182.68,182.64,3.07]
[1755570756961,0.03901952,182.68,182.65,3.07]
[1755570758559,0.03901952,182.68,182.66,3.07]
[1755570760265,0.03901952,182.68,182.65,5.4721]
[1755570760468,135.52,182.77,182.67,3.07]
[1755570760469,138.55,182.77,182.67,3.07]
[1755570761463,138.55,182.77,182.67,8.5416]
[1755570761769,138.55,182.77,182.7,0.03941333]
[1755570762070,3.03,182.76,182.7,0.03941333]
[1755570765561,138.57,182.81,182.71,3.07]
[1755570765757,3.06714804,182.75,182.71,3.07]
[1755570765961,0.03714804,182.75,182.68,6.65411173]
[1755570766261,0.03714804,182.75,182.71,0.03949333]
[1755570766465,0.03714804,182.75,182.71,3.10949333]
[1755570766869,0.03714804,182.75,182.72,3.07]
[1755570767265,0.03714804,182.75,182.73,3.07]
[1755570767661,0.03714804,182.75,182.72,3.07]
[1755570767972,0.03714804,182.75,182.71,0.03949333]
[1755570768171,0.03714804,182.75,182.72,3.07]
[1755570768774,0.03714804,182.75,182.73,3.07]
[1755570768982,0.03714804,182.75,182.74,3.07]
[1755570769466,135.54,182.81,182.74,3.07]
[1755570769976,3.03,182.84,182.74,3.07]
[1755570770661,3.03,182.84,182.75,5.4691]
[1755570770966,3.03,182.84,182.77,0.03908608]
[1755570771262,3.03,182.84,182.77,3.10908608]
[1755570773267,3.03,182.84,182.77,8.57758608]
[1755570773868,3.03,182.84,182.77,3.10908608]
[1755570774174,3.03,182.84,182.77,0.03908608]
[1755570776167,3.08,182.82,182.77,0.03908608]
[1755570776575,135.44,182.81,182.77,0.03908608]
[1755570776876,3.08,182.79,182.77,0.03908608]
[1755570777082,135.44,182.81,182.77,0.03908608]
[1755570777083,3.08,182.78,182.77,0.03908608]
[1755570780974,3.08,182.79,182.77,0.03908608]
[1755570781569,3.08,182.84,182.77,0.03908608]
[1755570781769,139.69682265,182.83,182.77,0.03908608]
[1755570781986,3.08,182.82,182.77,0.03908608]
[1755570782478,3.08,182.81,182.77,0.03908608]
[1755570782971,3.08,182.8,182.77,0.03908608]
[1755570784182,135.34,182.83,182.77,0.03908608]
[1755570784378,3.08,182.8,182.77,0.03908608]
[1755570785075,135.34,182.83,182.77,3.04908608]
[1755570785276,135.34,182.83,182.77,0.03908608]
[1755570785477,3.08,182.81,182.77,0.03908608]
[1755570785676,138.42,182.83,182.77,0.03908608]
[1755570785880,367.56,182.85,182.77,3.04908608]
[1755570786177,135.34,182.84,182.77,3.04908608]
[1755570790790,3.08,182.83,182.77,3.04908608]
[1755570791785,3.08,182.83,182.77,0.03908608]
[1755570795188,3.08,182.81,182.77,0.03908608]
[1755570795488,3.08,182.78,182.77,0.03908608]
[1755570795689,138.36,182.78,182.77,0.03908608]
[1755570796390,142.71635287,182.78,182.77,0.03908608]
[1755570796579,3.08,182.77,182.68,3.01]
[1755570797787,4.35805997,182.76,182.68,3.01]
[1755570797987,3.08,182.75,182.68,3.01]
[1755570799287,3.08,182.75,182.61,3.01]
[1755570799692,3.08,182.75,182.62,3.01]
[1755570801395,11.01410283,182.74,182.62,3.01]
[1755570801697,3.08,182.72,182.62,3.01]
[1755570801890,3.08,182.7,182.62,3.01]
[1755570802291,2.92,182.69,182.58,3.13]
[1755570802491,6.65411173,182.7,182.58,3.13]
[1755570802492,2.92,182.67,182.58,3.13]
[1755570805205,135.32,182.7,182.58,3.13]
[1755570806507,2.92,182.71,182.61,3.13]
[1755570815514,2.92,182.68,182.61,3.13]
[1755570816812,2.92,182.68,182.57,3.13]
[1755570817719,4.23020336,182.66,182.57,3.13]
[1755570817911,2.92,182.65,182.57,3.13]
[1755570822021,4.23020336,182.6,182.53,3.13]
[1755570822329,7.15020336,182.63,182.53,3.13]
[1755570823926,7.15020336,182.63,182.53,4.23020336]
[1755570824125,7.15020336,182.63,182.54,3.13]
[1755570824327,135.38,182.64,182.54,3.13]
[1755570824925,135.38,182.64,182.56,3.13]
[1755570825618,139.61020336,182.64,182.56,3.13]
[1755570825815,2.92,182.63,182.56,3.13]
[1755570826726,2.92,182.63,182.53,3.13]
[1755570827725,4.23020336,182.61,182.53,3.13]
[1755570828021,2.92,182.6,182.53,3.13]
[1755570833826,2.98,182.57,182.49,2.97]
[1755570835429,7.21020336,182.61,182.49,2.97]
[1755570835821,7.21020336,182.61,182.49,5.4768]
[1755570836030,7.21020336,182.61,182.5,2.97]
[1755570836733,7.21020336,182.61,182.5,4.23020336]
[1755570837037,7.21020336,182.61,182.51,2.97]
[1755570837529,2.98,182.59,182.51,2.97]
[1755570840836,2.98,182.59,182.45,135.36]
[1755570840837,0.9533463,182.63,182.55,2.97]
[1755570841027,2.98,182.65,182.55,2.97]
[1755570841229,4.35333872,182.64,182.55,2.97]
[1755570841535,4.35333872,182.64,182.54,4.23020336]
[1755570841536,4.35460418,182.63,182.59,2.97]
[1755570841732,0.95320268,182.67,182.59,2.97]
[1755570842037,2.98,182.68,182.61,2.97]
[1755570842738,135.42,182.7,182.61,2.97]
[1755570842930,2.98,182.72,182.64,2.97]
[1755570843138,2.98,182.75,182.64,2.97]
[1755570843332,2.98,182.73,182.64,2.97]
[1755570843532,4.35918211,182.72,182.64,2.97]
[1755570843728,4.23020336,182.73,182.64,2.97]
[1755570843931,7.3391779,182.72,182.64,2.97]
[1755570844133,2.98,182.66,182.57,2.97]
[1755570844334,4.3591779,182.65,182.57,2.97]
[1755570844532,2.98,182.63,182.54,2.97]
[1755570845040,2.98,182.6,182.54,2.97]
[1755570845333,2.98,182.6,182.49,4.23020336]
[1755570845334,4.35809862,182.59,182.51,2.97]
[1755570845535,2.98,182.6,182.51,2.97]
[1755570845739,4.35800861,182.59,182.51,2.97]
[1755570845933,2.98,182.6,182.51,2.97]
[1755570846130,4.35800861,182.59,182.51,2.97]
[1755570846331,2.98,182.6,182.51,2.97]
[1755570846535,4.35889336,182.59,182.51,2.97]
[1755570846740,2.98,182.6,182.51,2.97]
[1755570846942,4.35937517,182.59,182.51,2.97]
[1755570847140,2.98,182.6,182.51,2.97]
[1755570847340,4.35937518,182.59,182.51,2.97]
[1755570847642,2.98,182.6,182.51,2.97]
[1755570849140,6.67462158,182.62,182.51,2.97]
[1755570849642,9.65462158,182.62,182.52,2.97]
[1755570849842,4.35716659,182.61,182.52,2.97]
[1755570850146,9.65462158,182.62,182.52,2.97]
[1755570850443,4.35716547,182.61,182.52,2.97]
[1755570850643,9.65462158,182.62,182.52,2.97]
[1755570850845,4.35763945,182.61,182.52,2.97]
[1755570851044,2.98,182.61,182.52,2.97]
[1755570851244,2.98,182.59,182.45,2.97]
[1755570851645,2.98,182.59,182.46,5.4778]
[1755570851845,2.98,182.59,182.47,2.97]
[1755570852250,4.35807466,182.58,182.47,2.97]
[1755570852450,2.98,182.59,182.47,2.97]
[1755570855943,2.98,182.59,182.44,8.4482]
[1755570855944,9.65462158,182.59,182.44,8.4482]
[1755570856137,4.35806968,182.58,182.44,5.4782]
[1755570856341,2.98,182.57,182.45,2.97]
[1755570856752,2.98,182.55,182.45,2.97]
[1755570858246,2.98,182.54,182.45,2.97]
[1755570865262,2.98,182.54,182.42,3.01]
[1755570866552,2.98,182.54,182.43,5.4787]
[1755570866750,2.98,182.54,182.44,3.01]
[1755570869960,2.95,182.51,182.44,3.01]
[1755570878566,4.23801189,182.52,182.44,3.01]
[1755570878866,7.18801189,182.52,182.44,3.01]
[1755570879471,4.23801189,182.52,182.44,3.01]
[1755570879773,2.95,182.51,182.44,3.01]
[1755570882972,4.23801189,182.49,182.39,3.01]
[1755570883174,2.95,182.48,182.39,3.01]
[1755570883374,2.95,182.47,182.46,0.03825213]
[1755570883576,2.95,182.47,182.39,3.01]
[1755570884161,4.23801189,182.46,182.39,3.01]
[1755570884366,2.95,182.45,182.39,3.01]
[1755570884866,2.95,182.45,182.34,3.01]
[1755570886677,2.95,182.45,182.35,3.01]
[1755570889974,2.95,182.42,182.32,3.01]
[1755570890975,4.23801189,182.4,182.32,3.01]
[1755570891177,2.95,182.39,182.32,3.01]
[1755570896479,2.95,182.39,182.25,196.87173943]
[1755570896686,139.79801189,182.4,182.25,196.87173943]
[1755570896687,3.07,182.36,182.26,2.89]
[1755570898584,7.30801189,182.4,182.3,2.89]
[1755570899381,7.30801189,182.4,182.33,0.04178204]
[1755570899583,4.23801189,182.37,182.33,0.04178204]
[1755570899892,3.07,182.34,182.33,0.04178204]
[1755570900383,3.07,182.36,182.33,2.93178204]
[1755570900587,3.07,182.4,182.33,2.93178204]
[1755570901088,3.07,182.4,182.33,2.89]
[1755570901677,3.07,182.4,182.29,2.89]
[1755570901881,3.07,182.37,182.29,2.89]
[1755570903582,3.07,182.42,182.31,4.23801189]
[1755570903785,3.07,182.42,182.32,2.89]
[1755570904286,3.07,182.42,182.35,2.92686197]
[1755570904983,4.23801189,182.41,182.35,0.03686197]
[1755570905182,3.07,182.4,182.35,0.03686197]
[1755570905386,20.65801189,182.41,182.35,0.03686197]
[1755570905585,3.07,182.39,182.35,0.03686197]
[1755570905787,4.23801189,182.38,182.35,0.03686197]
[1755570905997,3.07,182.36,182.35,0.03686197]
[1755570906886,3.61,182.36,182.27,2.89]
[1755570907091,4.23801189,182.3,182.22,2.89]
[1755570908284,3.10648483,182.28,182.16,4.23801189]
[1755570908483,4.23801189,182.27,182.17,2.89]
[1755570909189,0.03616044,182.24,182.17,2.89]
[1755570910388,4.27417233,182.24,182.17,2.89]
[1755570912291,3.07,182.23,182.12,2.89]
[1755570912488,4.23801189,182.21,182.12,2.89]
[1755570913093,0.03633542,182.18,182.12,2.89]
[1755570913989,0.03633542,182.18,182.09,2.89]
[1755570914894,0.03633542,182.18,182.09,5.4889]
[1755570915094,0.03633542,182.18,182.08,4.23801189]
[1755570915095,0.03633542,182.18,182.1,2.89]
[1755570919205,7.34434731,182.18,182.1,2.89]
[1755570920794,0.03633542,182.18,182.1,2.89]
[1755570921506,0.03633542,182.18,182.15,4.23801189]
[1755570921801,0.03633542,182.18,182.16,2.89]
[1755570922003,3.07,182.23,182.15,7.12801189]
[1755570922201,0.04036051,182.19,182.15,7.12801189]
[1755570922398,0.04036051,182.19,182.15,4.23801189]
[1755570922604,0.04036051,182.19,182.13,3.1]
[1755570923003,3.07,182.2,182.13,3.1]
[1755570923204,3.07,182.23,182.13,3.1]
[1755570923408,0.04171051,182.18,182.15,9.72501189]
[1755570923617,3.07,182.26,182.16,3.1]
[1755570923812,7.30801189,182.3,182.19,3.1]
[1755570924013,3.07,182.3,182.19,3.1]
[1755570924312,3.07,182.3,182.2,3.1]
[1755570924910,4.23801189,182.27,182.2,3.1]
[1755570925112,3.07,182.26,182.15,4.23801189]
[1755570925307,3.07,182.26,182.16,3.1]
[1755570925911,3.07,182.26,182.19,0.0371145]
[1755570927912,3.07,182.22,182.19,0.0371145]
[1755570928220,3.07,182.2,182.19,0.0371145]
[1755570928414,3.07,182.2,182.13,3.1]
[1755570929312,7.30801189,182.24,182.13,3.1]
[1755570930417,3.07,182.23,182.13,3.1]
[1755570931314,3.07,182.2,182.13,3.1]
[1755570931513,7.30801189,182.24,182.13,3.1]
[1755570933019,3.07,182.23,182.13,3.1]
[1755570935019,3.79890794,182.22,182.13,3.1]
[1755570935218,3.07,182.23,182.14,3.1]
[1755570935514,139.31,182.27,182.17,3.1]
[1755570935718,3.80078657,182.26,182.17,3.1]
[1755570935913,3.80078657,182.25,182.17,3.1]
[1755570936114,11.10879846,182.24,182.17,3.1]
[1755570936320,4.23801189,182.24,182.2,0.04145101]
[1755570936518,3.07,182.21,182.2,0.04145101]
[1755570937916,7.30801189,182.21,182.2,0.04145101]
[1755570938118,11.10941166,182.21,182.2,0.04145101]
[1755570938322,11.64941166,182.21,182.2,0.04145101]
[1755570938622,11.10941166,182.21,182.2,0.04145101]
[1755570945225,7.30801189,182.21,182.2,0.04145101]
[1755570945430,11.12130803,182.21,182.2,0.04145101]
[1755570945627,3.81329614,182.21,182.2,3.14145101]
[1755570945827,3.07,182.25,182.21,3.1]
[1755570946034,3.81376035,182.24,182.21,3.1]
[1755570946330,140.47801189,182.27,182.21,3.1]
[1755570946530,3.81699648,182.26,182.21,3.1]
[1755570946720,136.24,182.27,182.21,3.1]
[1755570946921,3.81842323,182.26,182.21,3.1]
[1755570947121,3.82038293,182.25,182.23,3.1]
[1755570947324,136.24,182.27,182.23,3.1]
[1755570947522,3.82038163,182.26,182.23,3.1]
[1755570947724,6.89038163,182.25,182.2,3.14145101]
[1755570947930,6.89038163,182.24,182.2,3.14145101]
[1755570948122,3.82266634,182.23,182.2,3.14145101]
[1755570948324,143.54801189,182.27,182.21,3.1]
[1755570948523,3.82298425,182.26,182.2,0.04145101]
[1755570948723,136.24,182.27,182.2,4.2794629]
[1755570948922,136.24,182.27,182.21,3.1]
[1755570949233,504.76,182.32,182.25,3.1]
[1755570949533,8.18470188,182.31,182.25,3.1]
[1755570949730,3.82810803,182.3,182.26,3.1]
[1755570949925,3.82810803,182.29,182.27,3.1]
[1755570950118,3.82810803,182.28,182.27,3.1]
[1755570950728,504.76,182.32,182.28,3.1]
[1755570950921,3.83233281,182.31,182.26,0.03665359]
[1755570951126,3.83233281,182.3,182.27,3.1]
[1755570951320,136.26,182.32,182.28,3.1]
[1755570951620,3.83468706,182.31,182.3,3.1]
[1755570951820,3.83468706,182.31,182.26,4.27466548]
[1755570952131,3.07,182.35,182.27,3.1]
[1755570952333,3.83391253,182.34,182.28,3.09]
[1755570952526,3.83391253,182.33,182.27,4.27329546]
[1755570952722,3.83391253,182.32,182.3,3.09]
[1755570952925,136.42,182.37,182.28,3.09]
[1755570953230,3.83418626,182.36,182.28,3.12564962]
[1755570953430,3.83418626,182.35,182.28,3.12564962]
[1755570953625,136.42,182.37,182.28,3.12564962]
[1755570953830,3.83164138,182.36,182.31,3.09]
[1755570954132,2.98,182.39,182.32,3.09]
[1755570954324,3.82762779,182.38,182.32,3.09]
[1755570954529,7.21801189,182.43,182.32,3.09]
[1755570954720,8.18232738,182.42,182.32,3.09]
[1755570954926,2.98,182.4,182.32,3.09]
[1755570955232,2.98,182.38,182.35,0.03567832]
[1755570955437,2.98,182.36,182.35,0.03567832]
[1755570955734,6.80793489,182.36,182.35,0.03567832]
[1755570956132,2.98,182.39,182.35,0.03567832]
[1755570956333,3.82182935,182.38,182.35,0.03567832]
[1755570956533,7.21801189,182.43,182.35,3.12567832]
[1755570956737,3.8224099,182.42,182.35,3.12567832]
[1755570956928,3.8224099,182.41,182.35,3.12567832]
[1755570957130,7.21801189,182.43,182.35,3.12567832]
[1755570957335,3.81854689,182.42,182.35,3.12567832]
[1755570957632,3.81854689,182.41,182.35,3.12567832]
[1755570957834,7.21801189,182.43,182.35,3.12567832]
[1755570958036,3.81846208,182.42,182.35,3.12567832]
[1755570958331,3.81846208,182.41,182.35,3.12567832]
[1755570958525,2.98,182.43,182.35,3.12567832]
[1755570958732,3.81503484,182.42,182.35,3.12567832]
[1755570958926,3.81503484,182.41,182.35,3.12567832]
[1755570959131,139.54,182.43,182.35,3.12567832]
[1755570959342,3.81246558,182.42,182.35,3.12567832]
[1755570959528,139.54,182.43,182.35,3.12567832]
[1755570959728,3.81247374,182.42,182.35,3.12567832]
[1755570959929,139.54,182.43,182.35,3.12567832]
[1755570960139,3.8126311,182.42,182.35,3.12567832]
[1755570960436,139.54,182.43,182.35,3.12567832]
[1755570960639,3.81244453,182.42,182.35,3.12567832]
[1755570960937,139.54,182.43,182.35,3.12567832]
[1755570961133,3.81244453,182.42,182.35,3.12567832]
[1755570961329,139.54,182.43,182.35,3.12567832]
[1755570962341,124.0,182.51,182.4,6.68693416]
[1755570962536,371.7,182.52,182.41,3.09]
[1755570963042,371.7,182.52,182.45,0.03680449]
[1755570963333,371.7,182.52,182.45,3.12680449]
[1755570963739,371.7,182.52,182.45,0.03680449]
[1755570967336,371.7,182.52,182.45,3.12680449]
[1755570967838,136.66,182.54,182.45,3.12680449]
[1755570968046,136.54,182.55,182.45,3.12680449]
[1755570968641,136.54,182.55,182.45,3.09]
[1755570968837,136.54,182.55,182.49,3.09]
[1755570971445,2.98,182.6,182.49,3.09]
[1755570971645,136.52,182.59,182.49,3.09]
[1755570971943,2.98,182.58,182.49,3.09]
[1755570972154,2.98,182.58,182.52,0.03856557]
[1755570975647,2.98,182.57,182.52,0.03856557]
[1755570975849,2.98,182.56,182.52,0.03856557]
[1755570976051,2.98,182.54,182.52,0.03856557]
[1755570976242,139.38,182.53,182.52,0.03856557]
[1755570977062,139.38,182.53,182.43,3.09]
[1755570978357,0.03975339,182.5,182.43,3.09]
[1755570979563,0.03975339,182.5,182.46,3.09]
[1755570979759,3.01975339,182.5,182.39,3.09]
[1755570979955,3.01975339,182.5,182.42,12.16583416]
[1755570980155,2.98,182.5,182.43,3.09]
[1755570980462,0.03547846,182.48,182.43,3.09]
[1755570980658,0.03547846,182.48,182.44,3.09]
[1755570980858,0.03547846,182.48,182.45,3.09]
[1755570981759,0.03547846,182.48,182.42,4.23832623]
[1755570981962,0.03547846,182.48,182.46,3.09]
[1755570982655,0.03547846,182.48,182.47,2.92]
[1755570982859,136.4,182.53,182.47,2.92]
[1755570983061,136.4,182.53,182.49,2.92]
[1755570983262,2.89,182.56,182.49,2.92]
[1755570984159,2.89,182.56,182.51,0.0387103]
[1755570984352,136.42,182.58,182.51,2.9587103]
[1755570984560,2.89,182.55,182.51,2.9587103]
[1755570984756,2.89,182.57,182.51,0.0387103]
[1755570985958,4.23832623,182.55,182.51,0.0387103]
[1755570986160,2.89,182.52,182.51,0.0387103]
[1755570987461,139.23,182.52,182.51,0.0387103]